bitfinex/quotes_ETHUSD_20250916
["timestamp","ask_amount","ask_price","bid_price","bid_amount"]
[1758045753589,0.8921,4495.3,4495.1,0.001]
[1758045754023,1.1875,4495.2,4495.1,0.001]
[1758045754423,0.7569,4495.2,4495.1,2.22564461]
[1758045754943,0.002,4495.4,4495.3,2.22454563]
[1758045755103,0.002,4495.4,4495.3,5.97979108]
[1758045755304,0.002,4495.4,4495.3,5.95754563]
[1758045756616,0.002,4495.4,4495.3,6.06874563]
[1758045757291,0.002,4495.4,4495.3,6.84484563]
[1758045757494,0.002,4495.4,4495.3,7.87826851]
[1758045757892,0.002,4495.4,4495.3,15.16230841]
[1758045758310,0.002,4495.4,4495.3,17.56230841]
[1758045761530,0.002,4495.4,4495.3,20.56230841]
[1758045762116,1e-08,4495.9,4495.6,0.792]
[1758045762314,1e-08,4495.9,4495.8,11.38213813]
[1758045762627,1e-08,4495.9,4495.8,11.68263813]
[1758045762817,1e-08,4495.9,4495.8,15.79563813]
[1758045763011,1e-08,4495.9,4495.8,15.04973813]
[1758045763211,1e-08,4495.9,4495.8,15.79563813]
[1758045763537,1e-08,4495.9,4495.8,18.01359694]
[1758045765427,0.12,4497.8,4496.8,3.01580359]
[1758045765630,0.12,4497.8,4496.8,14.63608152]
[1758045765835,0.12,4497.8,4497.7,2.2233586]
[1758045766039,0.12,4497.8,4497.7,5.97759218]
[1758045766236,0.4154,4497.8,4497.7,5.9553586]
[1758045766441,0.4154,4497.8,4497.7,8.4657586]
[1758045766808,1.3075,4497.8,4497.7,4.7337586]
[1758045767140,1.3075,4497.8,4497.7,8.4657586]
[1758045767313,1.3075,4497.8,4497.7,6.0657586]
[1758045767715,1.3075,4497.8,4497.7,13.0657586]
[1758045768427,1.3075,4497.8,4497.7,7.0]
[1758045768742,1.3075,4497.8,4497.7,10.732]
[1758045769036,1.43925,4497.8,4497.7,10.732]
[1758045770231,1.2575,4497.8,4497.7,7.0]
[1758045770542,3.48080917,4497.8,4497.7,7.0]
[1758045770715,2.33375953,4497.7,4496.9,0.1104]
[1758045770919,2.22356074,4497.3,4497.0,1.748]
[1758045771221,0.2954,4497.1,4496.9,3.732]
[1758045771430,0.8921,4497.0,4496.4,0.1104]
[1758045771631,0.2954,4496.5,4496.2,3.93308835]
[1758045771831,0.8921,4496.4,4496.3,3.732]
[1758045772144,1.1875,4496.4,4496.3,3.732]
[1758045773312,1.31729,4496.4,4495.5,3.93342237]
[1758045773534,1.0116,4496.3,4495.7,2.2243114]
[1758045773732,0.9004,4496.2,4495.8,5.95728884]
[1758045773928,0.1112,4496.3,4495.8,5.95728884]
[1758045774138,0.2902,4495.9,4495.8,5.95728884]
[1758045774337,1.1906,4495.9,4495.8,3.733]
[1758045774543,0.2902,4495.9,4495.3,0.001]
[1758045774744,0.2902,4495.9,4495.4,3.732]
[1758045775041,0.8924,4495.8,4495.5,3.741]
[1758045775227,0.3145,4495.6,4495.5,3.741]
[1758045775435,1.2069,4495.6,4495.5,3.741]
[1758045775742,1.2069,4495.6,4495.4,2.22448687]
[1758045775913,0.7352,4495.6,4495.5,3.741]
[1758045776114,0.7352,4495.6,4495.3,0.001]
[1758045776309,0.4307,4495.5,4495.4,3.741]
[1758045776510,1.2069,4495.5,4495.4,3.741]
[1758045777814,1.2069,4495.5,4495.3,2.22552653]
[1758045778014,0.7452,4495.5,4495.4,3.74]
[1758045778527,1.2069,4495.5,4495.4,5.96449615]
[1758045778925,1.2069,4495.5,4495.4,3.74]
[1758045779125,1.2069,4495.5,4495.4,5.96449615]
[1758045779443,0.7762,4495.5,4495.4,5.96449615]
[1758045779641,0.3145,4495.5,4495.4,5.96449615]
[1758045779849,0.66839633,4496.6,4495.4,6.25149615]
[1758045780014,0.36683963,4496.5,4495.5,0.02224446]
[1758045780217,0.79753963,4496.5,4495.9,2.22424667]
[1758045780441,0.4617,4496.4,4495.9,2.22424875]
[1758045780625,0.36683963,4496.5,4496.0,3.74]
[1758045780829,0.4617,4496.8,4496.2,2.22406081]
[1758045781354,0.59149,4497.1,4496.7,0.287]
[1758045781661,0.59149,4497.1,4496.9,2.22373102]
[1758045781814,0.3145,4497.0,4496.9,2.22373102]
[1758045782322,0.3145,4497.0,4496.8,2.2237568]
[1758045782520,0.4617,4497.6,4496.9,0.287]
[1758045782857,0.4617,4497.6,4497.1,2.22361647]
[1758045783160,0.4617,4497.6,4497.2,2.22356271]
[1758045783465,0.5317,4497.8,4497.2,2.22356271]
[1758045783627,0.5317,4497.8,4497.0,2.22368613]
[1758045783835,0.73837212,4497.8,4496.9,2.22375414]
[1758045784044,0.73837212,4497.8,4497.2,2.22358043]
[1758045784250,0.5317,4497.8,4497.3,2.22355383]
[1758045784577,0.5317,4497.8,4496.8,4.2381]
[1758045784578,0.1104,4497.6,4497.4,2.22348412]
[1758045784788,0.07,4497.8,4497.7,2.2233586]
[1758045785082,0.1804,4497.8,4497.7,2.2233586]
[1758045785380,0.07,4497.8,4497.7,2.2233586]
[1758045785574,0.07,4497.8,4497.7,2.5103586]
[1758045786142,0.07,4497.8,4497.7,4.9103586]
[1758045786659,0.07,4497.8,4497.7,4.6233586]
[1758045788671,0.07,4497.8,4497.7,6.2513586]
[1758045790869,0.07,4497.8,4497.7,7.1792586]
[1758045791439,0.07,4497.8,4497.7,7.2896586]
[1758045791638,0.07,4497.8,4497.7,9.6896586]
[1758045792162,0.07,4497.8,4497.7,5.5178586]
[1758045792367,0.07,4497.8,4497.7,9.2568586]
[1758045793857,0.07,4497.8,4497.7,8.7597586]
[1758045794845,0.07,4497.8,4497.7,4.7337586]
[1758045795176,0.3845,4497.8,4497.7,8.4717586]
[1758045795383,0.3845,4497.8,4497.7,8.4707586]
[1758045795746,0.3845,4497.8,4497.7,4.7337586]
[1758045795977,0.3845,4497.8,4497.7,8.4707586]
[1758045796582,0.07,4497.8,4497.7,8.4707586]
[1758045797379,0.07,4497.8,4497.7,8.7577586]
[1758045797584,0.07,4497.8,4497.7,5.5178586]
[1758045797803,0.07,4497.8,4497.7,5.9486586]
[1758045797958,0.07,4497.8,4497.7,9.6846586]
[1758045801191,0.07,4497.8,4497.7,9.2538586]
[1758045801686,0.3845,4497.8,4497.7,4.6233586]
[1758045801893,0.3845,4497.8,4497.7,8.3573586]
[1758045802188,0.07,4497.8,4497.7,5.9573586]
[1758045802595,0.3845,4497.8,4497.7,8.3573586]
[1758045803778,0.072,4497.8,4497.7,8.3573586]
[1758045803965,0.072,4497.8,4497.7,9.0751586]
[1758045804169,0.072,4497.8,4497.7,10.70211998]
[1758045805361,0.072,4497.8,4497.7,9.5722586]
[1758045806799,0.072,4497.8,4497.7,5.8382586]
[1758045807005,0.072,4497.8,4497.7,9.5702586]
[1758045807299,0.072,4497.8,4497.7,5.8382586]
[1758045807459,0.072,4497.8,4497.7,9.5702586]
[1758045809664,0.072,4497.8,4497.7,8.6423586]
[1758045809898,0.072,4497.8,4497.7,11.13979253]
[1758045811706,0.072,4497.8,4497.7,11.25019253]
[1758045812066,0.072,4497.8,4497.7,5.0207586]
[1758045812319,1.283,4497.8,4497.7,5.9543586]
[1758045812605,0.072,4497.8,4497.7,6.2619586]
[1758045812775,0.072,4497.8,4497.7,5.9543586]
[1758045812975,0.3751,4497.8,4497.7,5.9543586]
[1758045813176,1.283,4497.8,4497.7,5.9543586]
[1758045813995,1.283,4497.8,4497.7,2.2233586]
[1758045814208,0.8294,4497.8,4497.7,5.9543586]
[1758045814405,0.3751,4497.8,4497.7,5.9543586]
[1758045815080,0.072,4497.8,4497.7,5.9543586]
[1758045816301,0.072,4497.8,4497.7,6.2619586]
[1758045818309,0.072,4497.8,4497.7,5.9543586]
[1758045818511,0.3751,4497.8,4497.7,5.9543586]
[1758045819086,0.3751,4497.8,4497.7,3.731]
[1758045819279,0.3751,4497.8,4497.7,2.2233586]
[1758045819280,1.03724245,4497.8,4497.7,2.2233586]
[1758045819494,1.49084245,4497.8,4497.7,5.9543586]
[1758045820511,1.49084245,4497.8,4497.7,3.731]
[1758045821119,1.03724245,4497.8,4497.7,3.731]
[1758045821320,0.072,4497.8,4497.7,5.9543586]
[1758045821824,0.072,4497.8,4497.7,8.22703952]
[1758045822122,0.072,4497.8,4497.7,7.77603952]
[1758045822307,0.072,4497.8,4497.7,2.5309586]
[1758045822686,0.072,4497.8,4497.7,6.0647586]
[1758045823008,0.072,4497.8,4497.7,6.3723586]
[1758045823206,0.072,4497.8,4497.7,6.8286586]
[1758045823410,0.072,4497.8,4497.7,7.2796586]
[1758045823596,0.072,4497.8,4497.7,8.46996952]
[1758045824918,0.072,4497.8,4497.7,10.75956952]
[1758045825119,0.072,4497.8,4497.7,12.46756952]
[1758045825530,0.072,4497.8,4497.7,15.46756952]
[1758045827288,0.072,4497.8,4497.7,15.01656952]
[1758045827625,0.072,4497.8,4497.7,15.46756952]
[1758045829022,0.072,4497.8,4497.7,15.01656952]
[1758045829316,0.072,4497.8,4497.7,12.61656952]
[1758045830090,0.072,4497.8,4497.7,9.16026952]
[1758045831728,0.072,4497.8,4497.7,5.42926952]
[1758045831928,0.072,4497.8,4497.7,8.85266952]
[1758045832131,0.072,4497.8,4497.7,9.16026952]
[1758045832533,0.072,4497.8,4497.7,8.85266952]
[1758045832695,0.3751,4497.8,4497.7,7.6623586]
[1758045833032,0.3751,4497.8,4497.7,6.3313586]
[1758045833247,1.2742,4497.8,4497.7,5.439]
[1758045833397,1.48192574,4497.8,4496.9,2.22373031]
[1758045833736,5.03552546,4497.6,4497.0,3.731]
[1758045833899,1.31475367,4497.5,4497.2,2.2235928]
[1758045834098,0.8991,4497.4,4497.3,3.731]
[1758045834313,1.2016,4497.4,4497.3,3.731]
[1758045834946,1.2016,4497.4,4497.3,5.95455635]
[1758045835819,1.2016,4497.4,4497.3,3.731]
[1758045836861,0.3025,4497.4,4497.3,5.95455635]
[1758045837073,0.5687,4497.6,4497.5,2.22345747]
[1758045837237,0.5687,4497.6,4497.3,5.95455633]
[1758045837442,0.2861,4497.4,4497.3,5.95455633]
[1758045837953,0.2861,4497.4,4497.3,3.731]
[1758045838264,1.1743,4497.4,4497.3,3.731]
[1758045839162,1.1743,4497.4,4497.3,5.95455635]
[1758045839367,0.7444,4497.4,4497.3,5.95455635]
[1758045839568,0.2861,4497.4,4497.3,5.95455635]
[1758045840269,0.2861,4497.4,4497.3,3.731]
[1758045840494,0.2861,4497.4,4497.3,5.95455635]
[1758045840659,0.2861,4497.4,4497.3,3.731]
[1758045841031,1.1743,4497.4,4497.3,3.731]
[1758045841232,1.1743,4497.4,4497.0,2.22369086]
[1758045841434,0.4583,4497.3,4497.1,3.731]
[1758045841744,0.2861,4497.2,4496.8,0.1104]
[1758045842084,0.2861,4497.2,4496.1,2.22414815]
[1758045842085,0.1104,4496.9,4496.4,3.731]
[1758045842383,5.03552546,4496.7,4496.5,3.731]
[1758045842543,1.1743,4496.6,4496.5,3.731]
[1758045842880,0.1104,4496.5,4496.2,3.731]
[1758045843168,0.5687,4496.5,4496.2,3.731]
[1758045843340,0.2861,4496.3,4496.2,3.731]
[1758045843856,0.2861,4496.3,4496.2,5.95510035]
[1758045844042,0.1104,4496.5,4496.2,3.731]
[1758045844273,0.1104,4496.5,4496.4,2.22400142]
[1758045845892,0.1104,4496.5,4496.4,2.54000142]
[1758045846073,0.1104,4496.9,4496.5,2.22395196]
[1758045846282,0.1104,4496.9,4496.8,2.22380359]
[1758045846479,0.66829359,4497.7,4497.1,2.22362712]
[1758045846657,0.072,4497.8,4497.2,0.4765]
[1758045846986,0.072,4497.8,4497.7,2.5393586]
[1758045847156,0.072,4497.8,4497.7,3.0158586]
[1758045847761,0.072,4497.8,4497.7,0.7925]
[1758045847986,0.072,4497.8,4497.6,3.731]
[1758045848361,0.072,4497.8,4497.6,5.95439646]
[1758045848568,0.072,4497.8,4497.7,2.2233586]
[1758045849356,0.072,4497.8,4497.6,3.731]
[1758045849558,0.7444,4497.7,4497.6,3.731]
[1758045849895,6.83900801,4497.7,4497.3,3.731]
[1758045850191,1.09516668,4497.6,4497.2,3.731]
[1758045850388,0.2861,4497.3,4496.8,3.93278923]
[1758045850593,0.8882,4497.2,4496.9,3.731]
[1758045850797,0.2861,4497.0,4496.7,3.731]
[1758045851095,0.8882,4496.9,4496.0,1.709]
[1758045851386,5.03552546,4496.8,4496.0,3.93315761]
[1758045851589,0.4583,4496.7,4496.0,1.709]
[1758045851782,3.11214069,4496.6,4496.1,3.732]
[1758045851977,0.2861,4496.2,4496.1,3.732]
[1758045852571,0.8882,4496.5,4496.1,3.732]
[1758045852765,0.2861,4496.2,4496.1,3.732]
[1758045853690,0.2861,4496.2,4495.8,0.001]
[1758045853997,0.7444,4496.2,4496.0,3.732]
[1758045854164,0.2861,4496.2,4496.0,3.732]
[1758045854766,0.8882,4496.1,4495.8,0.001]
[1758045855166,0.2861,4495.9,4495.8,0.001]
[1758045855376,0.4583,4496.4,4496.0,0.316]
[1758045855589,0.4583,4496.4,4495.9,2.22420924]
[1758045855590,0.2861,4496.1,4495.8,0.001]
[1758045855772,0.40353,4496.1,4495.8,0.001]
[1758045856093,0.2861,4496.1,4495.8,0.001]
[1758045856297,0.2861,4496.1,4495.8,2.2252831]
[1758045856463,0.1112,4496.0,4495.8,2.2252831]
[1758045856667,0.1112,4496.0,4495.9,0.316]
[1758045857078,0.1112,4496.4,4495.9,1.2398]
[1758045857260,0.1112,4496.4,4496.0,4.6558]
[1758045857661,0.1112,4496.4,4496.0,3.732]
[1758045857898,0.1112,4496.4,4496.0,4.2085]
[1758045858200,0.1112,4496.4,4496.0,6.43269124]
[1758045858385,0.1112,4496.4,4496.0,4.2085]
[1758045858595,0.82366345,4496.4,4496.0,3.732]
[1758045858788,0.82366345,4496.4,4495.8,0.001]
[1758045858789,0.2861,4496.1,4495.8,0.001]
[1758045858977,0.2861,4496.1,4495.8,3.733]
[1758045858978,0.1112,4496.0,4495.8,3.733]
[1758045859192,0.2861,4495.9,4495.8,3.733]
[1758045859401,0.1112,4496.0,4495.8,4.049]
[1758045859587,0.1112,4496.0,4495.8,4.9728]
[1758045859783,2.22389371,4496.7,4495.9,0.4765]
[1758045859990,0.1112,4496.3,4495.9,0.4765]
[1758045860184,0.1112,4496.3,4496.0,0.4765]
[1758045861292,0.2861,4496.1,4495.8,0.001]
[1758045862993,2.51028578,4496.1,4495.8,0.001]
[1758045863303,0.5695,4496.0,4495.8,0.001]
[1758045863702,0.2861,4495.9,4495.8,0.001]
[1758045864429,0.1112,4496.0,4495.8,0.001]
[1758045865711,0.2915,4495.9,4495.8,0.001]
[1758045866018,3.40214875,4495.9,4495.8,0.001]
[1758045866422,1.1779,4495.9,4495.8,0.001]
[1758045866623,0.7424,4495.9,4495.8,0.001]
[1758045867026,0.2915,4495.9,4495.8,0.001]
[1758045867721,0.1112,4496.0,4495.8,0.3083]
[1758045867922,0.1112,4496.0,4495.8,0.001]
[1758045868127,0.31776389,4496.0,4495.8,0.001]
[1758045868323,0.1112,4496.0,4495.8,0.001]
[1758045868523,0.2915,4495.9,4495.8,0.001]
[1758045868825,3.40214875,4495.9,4495.8,0.001]
[1758045869027,3.60872371,4495.9,4495.8,0.001]
[1758045869616,3.60875796,4495.9,4495.8,0.001]
[1758045870553,3.81535543,4495.9,4495.8,0.001]
[1758045870725,6.81535543,4495.9,4495.8,0.001]
[1758045870893,8.80905648,4495.9,4495.8,0.001]
[1758045871692,12.54105648,4495.9,4495.8,0.001]
[1758045872199,8.80905648,4495.9,4495.8,0.001]
[1758045872398,8.37355648,4495.9,4495.8,0.001]
[1758045872719,11.65465648,4495.9,4495.8,0.001]
[1758045873314,7.92265648,4495.9,4495.8,0.001]
[1758045873536,11.65465648,4495.9,4495.8,0.001]
[1758045874038,7.92265648,4495.9,4495.8,0.001]
[1758045874234,6.43040773,4495.9,4495.8,0.001]
[1758045874443,5.95434201,4495.9,4495.8,0.001]
[1758045874646,8.17859076,4495.9,4495.8,0.001]
[1758045875206,0.41320668,4495.9,4495.8,0.3083]
[1758045875542,0.20660921,4496.0,4495.8,1.2374]
[1758045875746,0.1112,4495.9,4495.8,0.3083]
[1758045876239,0.1112,4495.9,4495.8,1.2374]
[1758045879026,2.62694875,4495.9,4495.8,0.001]
[1758045879226,7.61672498,4495.9,4495.8,0.001]
[1758045879420,12.07494917,4495.9,4495.8,0.001]
[1758045880618,11.18854917,4495.9,4495.8,0.001]
[1758045882034,7.45554917,4495.9,4495.8,0.001]
[1758045882230,11.19054917,4495.9,4495.8,0.001]
[1758045884430,12.07694917,4495.9,4495.8,0.001]
[1758045885317,12.07706722,4495.9,4495.8,0.001]
[1758045887922,7.45566722,4495.9,4495.8,0.001]
[1758045888118,7.45566722,4495.9,4495.8,0.3083]
[1758045888119,10.89916722,4495.9,4495.8,0.3083]
[1758045888553,11.19066722,4495.9,4495.8,0.001]
[1758045890271,11.64156722,4495.9,4495.8,0.001]
[1758045890485,12.07706722,4495.9,4495.8,0.001]
[1758045891077,13.56282338,4495.9,4495.8,0.001]
[1758045891272,14.35482338,4495.9,4495.8,0.001]
[1758045891571,14.34796932,4495.9,4495.8,0.001]
[1758045891935,13.15778253,4495.9,4495.8,0.001]
[1758045892359,14.05915388,4495.9,4495.8,0.001]
[1758045892638,12.08106722,4495.9,4495.8,0.001]
[1758045896073,8.34206722,4495.9,4495.8,0.001]
[1758045896370,12.08080971,4495.9,4495.8,0.001]
[1758045897667,7.45540971,4495.9,4495.8,0.001]
[1758045897864,6.11374269,4495.9,4495.8,0.7615]
[1758045898070,9.37443678,4495.9,4495.8,0.2989]
[1758045898361,10.16844269,4495.9,4495.8,0.001]
[1758045898582,11.67074491,4495.9,4495.8,0.001]
[1758045898758,11.35504491,4495.9,4495.8,0.001]
[1758045899157,11.35504491,4495.9,4495.8,0.2989]
[1758045900656,3.11574269,4495.9,4495.8,0.2989]
[1758045900857,2.63943678,4495.9,4495.8,1.226]
[1758045901056,9.37543678,4495.9,4495.8,1.226]
[1758045901269,9.85174269,4495.9,4495.8,1.226]
[1758045901959,9.85174269,4495.9,4495.8,0.001]
[1758045902156,11.54613491,4495.9,4495.8,0.001]
[1758045902783,11.23043491,4495.9,4495.8,0.7615]
[1758045902984,9.85174269,4495.9,4495.8,0.2989]
[1758045903193,10.16744269,4495.9,4495.8,0.001]
[1758045904053,6.11574269,4495.9,4495.8,0.2989]
[1758045904259,9.37543678,4495.9,4495.8,1.226]
[1758045904478,3.89149394,4495.9,4495.8,1.226]
[1758045904678,0.41518803,4495.9,4495.8,1.3487]
[1758045904885,3.739,4495.9,4495.8,1.3487]
[1758045905062,3.94560921,4495.9,4495.8,1.3487]
[1758045905458,3.94560921,4495.9,4495.8,1.226]
[1758045907597,3.739,4495.9,4495.8,1.226]
[1758045908595,6.48559954,4495.9,4495.8,0.001]
[1758045909091,6.6922444,4495.9,4495.8,0.001]
[1758045909411,7.16849278,4495.9,4495.8,0.001]
[1758045909818,6.85279278,4495.9,4495.8,0.001]
[1758045909989,6.6922444,4495.9,4495.8,0.001]
[1758045910316,8.68550511,4495.9,4495.8,0.001]
[1758045910478,11.68550511,4495.9,4495.8,0.001]
[1758045910679,11.97430808,4495.9,4495.8,0.001]
[1758045911025,12.23901928,4495.9,4495.8,0.001]
[1758045911329,13.50752096,4495.9,4495.8,0.001]
[1758045911730,13.24280976,4495.9,4495.8,0.001]
[1758045912644,13.24292737,4495.9,4495.8,0.001]
[1758045914014,13.50763857,4495.9,4495.8,0.001]
[1758045915122,2.22459512,4495.2,4494.8,0.001]
[1758045915320,12.30450974,4495.2,4494.8,0.001]
[1758045915522,13.53960974,4495.2,4494.8,0.001]
[1758045915726,13.82832505,4495.2,4495.1,1e-08]
[1758045916836,13.53960974,4495.2,4495.1,1e-08]
[1758045917638,13.53960974,4495.2,4495.1,0.00100001]
[1758045919422,13.97927481,4495.2,4495.1,0.00100001]
[1758045920101,13.53097481,4495.2,4495.1,0.00100001]
[1758045920502,8.56950974,4495.2,4495.1,0.29890001]
[1758045920731,12.61920974,4495.2,4495.1,0.00100001]
[1758045921006,13.53860974,4495.2,4495.1,0.00100001]
[1758045923156,13.97502463,4495.2,4495.1,0.00100001]
[1758045923343,13.05562463,4495.2,4495.1,0.00100001]
[1758045923508,13.97502463,4495.2,4495.1,0.00100001]
[1758045929837,29.87238042,4495.2,4495.1,0.00100001]
[1758045930037,37.03238042,4495.2,4495.1,0.00100001]
[1758045931442,36.11298042,4495.2,4495.1,0.00100001]
[1758045931940,37.02618042,4495.2,4495.1,0.00100001]
[1758045932141,36.11298042,4495.2,4495.1,0.00100001]
[1758045932333,35.79728042,4495.2,4495.1,0.00100001]
[1758045933149,15.72950974,4495.2,4495.1,1.25660001]
[1758045933355,19.46350974,4495.2,4495.1,1.25660001]
[1758045934565,19.46550974,4495.2,4495.1,1.25660001]
[1758045934743,19.46550974,4495.2,4495.1,0.30760001]
[1758045935177,19.46550974,4495.2,4495.1,1.25660001]
[1758045935383,14.98659772,4495.2,4495.1,1.25660001]
[1758045935597,2.12554163,4495.2,4495.1,1.25660001]
[1758045935803,4.91877916,4495.2,4495.1,1.25660001]
[1758045935948,5.65277916,4495.2,4495.1,1.25660001]
[1758045936143,8.65277916,4495.2,4495.1,1.25660001]
[1758045936388,3.94277916,4495.2,4495.1,1.60483465]
[1758045936754,0.20877916,4495.2,4495.1,3.82947926]
[1758045936965,0.002,4495.2,4495.1,3.8517257]
[1758045937165,0.002,4495.2,4495.1,3.82947926]
[1758045938090,0.002,4495.2,4495.1,3.82230945]
[1758045938286,0.002,4495.2,4495.1,3.93350945]
[1758045939186,0.002,4495.2,4495.1,8.97710568]
[1758045939387,0.002,4495.2,4495.1,9.76910568]
[1758045939755,0.002,4495.2,4495.1,12.16910568]
[1758045940667,0.002,4495.2,4495.1,18.90310568]
[1758045940990,0.002,4495.2,4495.1,23.94670191]
[1758045941150,0.002,4495.2,4495.1,18.90310568]
[1758045941351,0.002,4495.2,4495.1,18.99220098]
[1758045941757,0.002,4495.2,4495.1,13.85950945]
[1758045943073,0.002,4495.2,4495.1,10.12550945]
[1758045943279,0.002,4495.2,4495.1,13.85950945]
[1758045943650,0.002,4495.2,4495.1,13.85850945]
[1758045946314,1e-08,4495.7,4495.6,3.01639718]
[1758045946457,1e-08,4495.7,4495.6,27.35616839]
[1758045946775,1e-08,4495.7,4495.6,28.70072442]
[1758045946961,0.002,4496.6,4496.3,3.01605088]
[1758045947315,0.002,4496.6,4496.3,11.02689138]
[1758045947495,0.002,4496.6,4496.3,12.44095219]
[1758045947859,0.002,4496.6,4496.3,14.84095219]
[1758045954017,0.002,4496.6,4496.3,11.10795219]
[1758045954181,0.002,4496.6,4496.3,9.36695219]
[1758045954527,0.002,4496.6,4496.3,13.89095219]
[1758045954706,0.002,4496.6,4496.3,14.37595219]
[1758045954907,0.3172,4496.4,4496.3,4.73525088]
[1758045955113,0.7715,4496.4,4496.3,8.46725088]
[1758045955687,0.7715,4496.4,4496.3,2.33525088]
[1758045955894,1.36442,4496.4,4496.3,3.8432]
[1758045956218,1.2402,4496.4,4496.3,3.8432]
[1758045956437,1.2402,4496.4,4495.6,1.709]
[1758045956591,0.4543,4496.3,4495.9,0.1112]
[1758045956790,0.923,4496.3,4495.9,0.1112]
[1758045957039,0.3152,4496.0,4495.9,0.1112]
[1758045957241,0.3152,4496.0,4495.7,3.732]
[1758045957538,0.923,4495.9,4495.7,3.732]
[1758045957702,1.2382,4495.8,4495.7,2.2243075]
[1758045957906,1.2382,4495.8,4495.5,3.8432]
[1758045958117,0.923,4495.7,4495.5,3.8432]
[1758045958317,0.3152,4495.6,4495.5,6.06764666]
[1758045958521,1.2382,4495.6,4495.5,3.8432]
[1758045959938,1.36202,4495.6,4495.1,0.001]
[1758045960328,1.47322,4495.6,4495.1,0.001]
[1758045960546,0.4687,4495.5,4495.1,0.001]
[1758045960754,0.923,4495.5,4495.1,0.001]
[1758045960928,0.3152,4495.2,4495.1,0.001]
[1758045961436,1.2382,4495.2,4495.1,0.001]
[1758045962205,0.1112,4495.3,4495.1,0.3152]
[1758045962539,0.1112,4495.6,4495.1,2.22563717]
[1758045962739,0.3114,4495.2,4495.1,0.001]
[1758045963123,1.2381,4495.2,4495.1,0.001]
[1758045964246,3.46269512,4495.2,4495.1,0.001]
[1758045964419,2.0335205,4495.2,4495.1,0.001]
[1758045964820,0.7657,4495.2,4495.1,0.001]
[1758045965020,1.2381,4495.2,4495.1,0.001]
[1758045965567,3.46269512,4495.2,4495.1,0.001]
[1758045965722,3.66881238,4495.2,4495.1,0.001]
[1758045966440,1.44421726,4495.2,4495.1,0.001]
[1758045966752,1.38252173,4495.2,4495.1,0.001]
[1758045967130,0.3114,4495.2,4495.1,0.001]
[1758045967436,0.4543,4495.6,4495.3,2.22453319]
[1758045967437,0.20611726,4495.6,4495.3,2.22453319]
[1758045967657,0.20611726,4495.6,4495.1,3.4952436]
[1758045967658,0.1112,4495.7,4495.6,2.22439718]
[1758045967818,0.1112,4496.3,4496.0,2.22417632]
[1758045968019,0.1112,4496.3,4496.0,0.50724199]
[1758045968360,0.002,4496.6,4496.2,0.3142]
[1758045968512,0.002,4496.6,4496.3,2.22405088]
[1758045968966,0.002,4496.6,4496.3,3.49365088]
[1758045969250,0.002,4496.6,4496.3,3.02325088]
[1758045969456,0.002,4496.6,4496.3,2.53825088]
[1758045969754,0.002,4496.6,4496.3,3.49365088]
[1758045969962,0.002,4496.6,4496.3,4.16295118]
[1758045970825,0.002,4496.6,4496.3,4.84375118]
[1758045971020,0.002,4496.6,4496.3,4.93271068]
[1758045972157,0.002,4496.6,4496.3,7.33271068]
[1758045976887,1e-08,4496.6,4496.5,3.01595196]
[1758045977051,1e-08,4496.6,4496.5,9.77119147]
[1758045977245,1e-08,4496.6,4496.5,11.01855196]
[1758045977450,1e-08,4496.6,4496.5,13.41855196]
[1758045978393,1e-08,4496.6,4496.5,9.68555196]
[1758045978546,1e-08,4496.6,4496.5,13.8507268]
[1758045978884,1e-08,4496.6,4496.5,14.3357268]
[1758045979198,1e-08,4496.6,4496.5,14.8061268]
[1758045979749,0.002,4497.3,4497.2,3.01560579]
[1758045980078,0.002,4497.3,4497.2,27.32655059]
[1758045980245,0.002,4497.3,4497.2,30.9245094]
[1758045980586,0.002,4497.3,4497.2,33.3245094]
[1758045982180,0.002,4497.3,4497.2,40.3245094]
[1758045982361,0.002,4497.3,4497.2,19.7671646]
[1758045982566,0.002,4497.3,4497.2,23.1849646]
[1758045982788,0.002,4497.3,4497.2,19.7671646]
[1758045983090,0.002,4497.3,4497.2,24.4545646]
[1758045984382,0.07,4497.8,4497.2,24.4545646]
[1758045984383,1e-08,4497.8,4497.7,6.0153586]
[1758045984602,1e-08,4497.8,4497.7,9.7483586]
[1758045984914,1e-08,4497.8,4497.7,11.0670586]
[1758045985313,1e-08,4497.9,4497.8,6.01530917]
[1758045985609,1e-08,4497.9,4497.8,7.45726897]
[1758045985765,1e-08,4497.9,4497.8,7.75946897]
[1758045985970,1e-08,4497.9,4497.8,10.15946897]
[1758045988097,0.01,4498.9,4498.0,6.01521031]
[1758045988302,0.01,4498.9,4498.4,0.792]
[1758045988614,0.01,4498.9,4498.8,0.1104]
[1758045988795,0.01,4498.9,4498.8,3.8424]
[1758045988995,0.3189,4498.9,4498.8,8.48744311]
[1758045989193,1.2478,4498.9,4498.8,8.46521497]
[1758045989702,1.2478,4498.9,4498.8,6.06521497]
[1758045991071,1.2478,4498.9,4498.8,13.06521497]
[1758045992293,1.2478,4498.9,4498.8,13.06321497]
[1758045992497,0.7731,4498.9,4498.8,9.33321497]
[1758045992674,1.2478,4498.9,4498.8,13.06321497]
[1758045993098,1.2478,4498.9,4498.8,9.33321497]
[1758045993298,1.2478,4498.9,4498.8,13.06321497]
[1758045995419,1.2478,4498.9,4498.8,10.8404]
[1758045995620,1.2478,4498.9,4498.8,13.06321497]
[1758045996429,0.01,4498.9,4498.8,13.06321497]
[1758045996791,0.3189,4498.9,4498.8,13.06321497]
[1758045997423,0.7731,4498.9,4498.8,13.06321497]